[Event "Titled Tuesday Blitz November 07 Late 2023"]
[White "Jarocka, Liwia"]
[Black "Czerw, Dawid"]
[WhiteFideId "21807558"]
[BlackFideId "1145746"]
[WhiteElo "2348"]
[BlackElo "2491"]
[Result "0-1"]
[Round "6"]
[TimeControl "180+1"]
[Date "2023.11.07"]
[WhiteClock "0:00:00"]
[BlackClock "0:00:01"]
[Board "95"]

1. e4 {[%clk 0:03:00]}  c5 {[%clk 0:02:57]} 2. Nf3 {[%clk 0:03:00]}  g6 {[%clk 0:02:50]} 3. d4 {[%clk 0:02:57]}  cxd4 {[%clk 0:02:50]} 4. Nxd4 {[%clk 0:02:58]}  Nc6 {[%clk 0:02:50]} 5. Nc3 {[%clk 0:02:57]}  Bg7 {[%clk 0:02:49]} 6. Be3 {[%clk 0:02:58]}  Nf6 {[%clk 0:02:49]} 7. Bc4 {[%clk 0:02:52]}  O-O {[%clk 0:02:42]} 8. Bb3 {[%clk 0:02:49]}  Re8 {[%clk 0:02:42]} 9. f3 {[%clk 0:02:46]}  e6 {[%clk 0:02:42]} 10. f4 {[%clk 0:02:45]}  d6 {[%clk 0:02:41]} 11. Qf3 {[%clk 0:02:39]}  Bd7 {[%clk 0:02:32]} 12. O-O-O {[%clk 0:02:38]}  Qb8 {[%clk 0:02:23]} 13. Kb1 {[%clk 0:02:30]}  a6 {[%clk 0:02:22]} 14. h3 {[%clk 0:02:24]}  b5 {[%clk 0:02:15]} 15. g4 {[%clk 0:02:22]}  Nxd4 {[%clk 0:02:11]} 16. Bxd4 {[%clk 0:02:21]}  Bc6 {[%clk 0:02:11]} 17. g5 {[%clk 0:02:18]}  Nh5 {[%clk 0:01:53]} 18. Bxg7 {[%clk 0:02:17]}  Nxg7 {[%clk 0:01:53]} 19. Rhe1 {[%clk 0:02:15]}  a5 {[%clk 0:01:51]} 20. a4 {[%clk 0:02:04]}  bxa4 {[%clk 0:01:37]} 21. Bxa4 {[%clk 0:01:55]}  Bxa4 {[%clk 0:01:27]} 22. Nxa4 {[%clk 0:01:56]}  Re7 {[%clk 0:01:22]} 23. b3 {[%clk 0:01:54]}  Rb7 {[%clk 0:01:20]} 24. Qd3 {[%clk 0:01:47]}  Rb4 {[%clk 0:01:07]} 25. Ka2 {[%clk 0:01:41]}  Ne8 {[%clk 0:00:54]} 26. f5 {[%clk 0:01:32]}  Qb7 {[%clk 0:00:46]} 27. h4 {[%clk 0:01:10]}  Rb8 {[%clk 0:00:44]} 28. Rb1 {[%clk 0:00:56]}  Nc7 {[%clk 0:00:29]} 29. c4 {[%clk 0:00:34]}  Qc6 {[%clk 0:00:21]} 30. Nc3 {[%clk 0:00:14]}  a4 {[%clk 0:00:13]} 31. fxe6 {[%clk 0:00:10]}  axb3+ {[%clk 0:00:10]} 32. Kb2 {[%clk 0:00:10]}  Nxe6 {[%clk 0:00:10]} 33. Nd5 {[%clk 0:00:07]}  Qxc4 {[%clk 0:00:09]} 34. Nxb4 {[%clk 0:00:05]}  Qxb4 {[%clk 0:00:06]} 35. Qc3 {[%clk 0:00:05]}  Qb6 {[%clk 0:00:05]} 36. Ra1 {[%clk 0:00:05]}  Qf2+ {[%clk 0:00:04]} 37. Kb1 {[%clk 0:00:04]}  Nc5 {[%clk 0:00:03]} 38. e5 {[%clk 0:00:02]}  b2 {[%clk 0:00:02]} 39. Ra2 {[%clk 0:00:01]}  Qf5+ {[%clk 0:00:02]} 40. Qc2 {[%clk 0:00:01]}  Qh3 {[%clk 0:00:01]} 41. Rxb2 {[%clk 0:00:00]}  Rc8 {[%clk 0:00:01]} 0-1


[Site "https://www.chess.com"]

[Event "Titled Tuesday Blitz November 07 Late 2023"]
[White "MclarenF1LM"]
[Black "Fernandez Bustamante, Leancy B."]
[BlackFideId "3523870"]
[WhiteElo "2483"]
[BlackElo "2337"]
[Result "0-1"]
[Round "6"]
[TimeControl "180+1"]
[Date "2023.11.07"]
[WhiteClock "0:00:00"]
[BlackClock "0:00:43"]
[Board "97"]

1. e4 {[%clk 0:03:00]}  c5 {[%clk 0:02:59]} 2. Nc3 {[%clk 0:03:00]}  a6 {[%clk 0:02:59]} 3. g3 {[%clk 0:03:01]}  b5 {[%clk 0:02:59]} 4. Bg2 {[%clk 0:03:02]}  Bb7 {[%clk 0:02:59]} 5. d3 {[%clk 0:03:02]}  b4 {[%clk 0:03:00]} 6. Nd5 {[%clk 0:03:02]}  e6 {[%clk 0:03:00]} 7. Ne3 {[%clk 0:03:02]}  d5 {[%clk 0:03:00]} 8. exd5 {[%clk 0:02:58]}  exd5 {[%clk 0:03:01]} 9. Qe2 {[%clk 0:02:58]}  Be7 {[%clk 0:02:56]} 10. c4 {[%clk 0:02:55]}  Nf6 {[%clk 0:02:50]} 11. g4 {[%clk 0:02:51]}  Nc6 {[%clk 0:02:49]} 12. g5 {[%clk 0:02:48]}  Nd4 {[%clk 0:02:49]} 13. Qd1 {[%clk 0:02:49]}  Nd7 {[%clk 0:02:42]} 14. h4 {[%clk 0:02:34]}  Nb6 {[%clk 0:02:34]} 15. Ne2 {[%clk 0:02:33]}  O-O {[%clk 0:02:28]} 16. Nxd4 {[%clk 0:02:21]}  cxd4 {[%clk 0:02:29]} 17. Nf5 {[%clk 0:02:21]}  Re8 {[%clk 0:02:20]} 18. O-O {[%clk 0:02:21]}  Qd7 {[%clk 0:02:14]} 19. Qg4 {[%clk 0:02:09]}  dxc4 {[%clk 0:02:09]} 20. dxc4 {[%clk 0:02:06]}  Bxg2 {[%clk 0:02:06]} 21. Kxg2 {[%clk 0:02:06]}  Qc6+ {[%clk 0:02:05]} 22. Kh3 {[%clk 0:01:51]}  Qxc4 {[%clk 0:02:02]} 23. Bf4 {[%clk 0:01:48]}  Nd5 {[%clk 0:01:58]} 24. Be5 {[%clk 0:01:43]}  Qd3+ {[%clk 0:01:51]} 25. Kh2 {[%clk 0:01:39]}  Bf8 {[%clk 0:01:46]} 26. Rae1 {[%clk 0:01:25]}  Ne3 {[%clk 0:01:36]} 27. fxe3 {[%clk 0:00:41]}  Rxe5 {[%clk 0:01:32]} 28. Qxd4 {[%clk 0:00:33]}  Qc2+ {[%clk 0:01:23]} 29. Kg1 {[%clk 0:00:09]}  Rxf5 {[%clk 0:01:22]} 30. Rxf5 {[%clk 0:00:08]}  Qxf5 {[%clk 0:01:22]} 31. Rf1 {[%clk 0:00:09]}  Qe6 {[%clk 0:01:16]} 32. b3 {[%clk 0:00:08]}  Re8 {[%clk 0:01:15]} 33. Rf3 {[%clk 0:00:08]}  Bd6 {[%clk 0:01:12]} 34. Kg2 {[%clk 0:00:07]}  Qe5 {[%clk 0:01:11]} 35. Qa7 {[%clk 0:00:06]}  Qh2+ {[%clk 0:01:10]} 36. Kf1 {[%clk 0:00:06]}  Qh1+ {[%clk 0:01:06]} 37. Ke2 {[%clk 0:00:07]}  Qg2+ {[%clk 0:01:04]} 38. Rf2 {[%clk 0:00:08]}  Qg4+ {[%clk 0:01:04]} 39. Kf1 {[%clk 0:00:08]}  Qe6 {[%clk 0:01:00]} 40. Qb7 {[%clk 0:00:05]}  g6 {[%clk 0:00:54]} 41. e4 {[%clk 0:00:02]}  Re7 {[%clk 0:00:52]} 42. Qa8+ {[%clk 0:00:03]}  Kg7 {[%clk 0:00:52]} 43. Qxa6 {[%clk 0:00:02]}  Qh3+ {[%clk 0:00:49]} 44. Ke2 {[%clk 0:00:02]}  Rxe4+ {[%clk 0:00:48]} 45. Kd1 {[%clk 0:00:02]}  Rd4+ {[%clk 0:00:44]} 46. Kc2 {[%clk 0:00:00]}  Qc3+ {[%clk 0:00:43]} 0-1


[Site "https://www.chess.com"]

[Event "Titled Tuesday Blitz November 07 Late 2023"]
[White "Willy, Stephen"]
[Black "KorolDimitriy75"]
[WhiteFideId "30981468"]
[WhiteElo "2478"]
[BlackElo "2336"]
[Result "1/2-1/2"]
[Round "6"]
[TimeControl "180+1"]
[Date "2023.11.07"]
[WhiteClock "0:00:05"]
[BlackClock "0:00:04"]
[Board "99"]

1. e4 {[%clk 0:02:54]}  c5 {[%clk 0:02:59]} 2. c3 {[%clk 0:02:51]}  d5 {[%clk 0:02:59]} 3. exd5 {[%clk 0:02:48]}  Qxd5 {[%clk 0:03:00]} 4. d4 {[%clk 0:02:47]}  cxd4 {[%clk 0:03:01]} 5. cxd4 {[%clk 0:02:48]}  Nc6 {[%clk 0:03:01]} 6. Nf3 {[%clk 0:02:44]}  e5 {[%clk 0:03:02]} 7. Nc3 {[%clk 0:02:44]}  Bb4 {[%clk 0:03:02]} 8. Bd2 {[%clk 0:02:44]}  Bxc3 {[%clk 0:03:02]} 9. Bxc3 {[%clk 0:02:45]}  e4 {[%clk 0:03:03]} 10. Ne5 {[%clk 0:02:45]}  Nxe5 {[%clk 0:03:03]} 11. dxe5 {[%clk 0:02:46]}  Ne7 {[%clk 0:03:04]} 12. Be2 {[%clk 0:02:32]}  O-O {[%clk 0:03:03]} 13. O-O {[%clk 0:02:31]}  Re8 {[%clk 0:02:47]} 14. Rc1 {[%clk 0:02:14]}  Qe6 {[%clk 0:02:35]} 15. Qa4 {[%clk 0:02:09]}  Nc6 {[%clk 0:01:43]} 16. Qxe4 {[%clk 0:02:03]}  Nxe5 {[%clk 0:01:40]} 17. Rfd1 {[%clk 0:01:48]}  Nc6 {[%clk 0:01:27]} 18. Qxe6 {[%clk 0:01:36]}  Bxe6 {[%clk 0:01:28]} 19. Bf3 {[%clk 0:01:33]}  Bxa2 {[%clk 0:01:27]} 20. Rd7 {[%clk 0:01:32]}  Rab8 {[%clk 0:01:23]} 21. Rxb7 {[%clk 0:01:29]}  Rxb7 {[%clk 0:01:19]} 22. Bxc6 {[%clk 0:01:29]}  Reb8 {[%clk 0:01:06]} 23. Bxb7 {[%clk 0:01:28]}  Rxb7 {[%clk 0:01:07]} 24. f3 {[%clk 0:01:25]}  f6 {[%clk 0:01:00]} 25. Kf2 {[%clk 0:01:24]}  Kf7 {[%clk 0:00:59]} 26. Bd4 {[%clk 0:01:22]}  Rd7 {[%clk 0:00:52]} 27. Ke3 {[%clk 0:01:19]}  a6 {[%clk 0:00:38]} 28. Rc6 {[%clk 0:01:16]}  Re7+ {[%clk 0:00:37]} 29. Kd2 {[%clk 0:01:14]}  Re6 {[%clk 0:00:38]} 30. Rc7+ {[%clk 0:01:09]}  Re7 {[%clk 0:00:38]} 31. Rc1 {[%clk 0:01:07]}  Bd5 {[%clk 0:00:35]} 32. Be3 {[%clk 0:01:06]}  Rd7 {[%clk 0:00:34]} 33. Ke2 {[%clk 0:01:05]}  Ke6 {[%clk 0:00:33]} 34. g4 {[%clk 0:00:59]}  Rb7 {[%clk 0:00:28]} 35. Bd4 {[%clk 0:00:59]}  Rb3 {[%clk 0:00:26]} 36. Bc3 {[%clk 0:00:57]}  Rb7 {[%clk 0:00:18]} 37. Kf2 {[%clk 0:00:57]}  Rd7 {[%clk 0:00:17]} 38. Re1+ {[%clk 0:00:56]}  Kf7 {[%clk 0:00:17]} 39. h4 {[%clk 0:00:54]}  Bc6 {[%clk 0:00:15]} 40. Kg3 {[%clk 0:00:51]}  Rd3 {[%clk 0:00:13]} 41. Rf1 {[%clk 0:00:51]}  h6 {[%clk 0:00:12]} 42. Kg2 {[%clk 0:00:48]}  g5 {[%clk 0:00:11]} 43. hxg5 {[%clk 0:00:48]}  hxg5 {[%clk 0:00:12]} 44. Rf2 {[%clk 0:00:48]}  Kg6 {[%clk 0:00:12]} 45. Kg3 {[%clk 0:00:44]}  Bd5 {[%clk 0:00:12]} 46. Kg2 {[%clk 0:00:44]}  Bc6 {[%clk 0:00:12]} 47. Rf1 {[%clk 0:00:42]}  f5 {[%clk 0:00:11]} 48. gxf5+ {[%clk 0:00:38]}  Kxf5 {[%clk 0:00:12]} 49. Kg3 {[%clk 0:00:36]}  g4 {[%clk 0:00:11]} 50. Kh4 {[%clk 0:00:31]}  gxf3 {[%clk 0:00:10]} 51. Kg3 {[%clk 0:00:31]}  Bd5 {[%clk 0:00:09]} 52. Re1 {[%clk 0:00:30]}  Be4 {[%clk 0:00:08]} 53. Ra1 {[%clk 0:00:27]}  Rd6 {[%clk 0:00:07]} 54. Ra5+ {[%clk 0:00:26]}  Kg6 {[%clk 0:00:06]} 55. Re5 {[%clk 0:00:26]}  Bc6 {[%clk 0:00:05]} 56. Kf2 {[%clk 0:00:19]}  Bb5 {[%clk 0:00:03]} 57. Kxf3 {[%clk 0:00:17]}  Rf6+ {[%clk 0:00:02]} 58. Kg3 {[%clk 0:00:16]}  Rf5 {[%clk 0:00:03]} 59. Re7 {[%clk 0:00:14]}  Rg5+ {[%clk 0:00:02]} 60. Kf4 {[%clk 0:00:14]}  Rf5+ {[%clk 0:00:01]} 61. Ke4 {[%clk 0:00:14]}  Rg5 {[%clk 0:00:01]} 62. Rg7+ {[%clk 0:00:14]}  Kh5 {[%clk 0:00:02]} 63. Rc7 {[%clk 0:00:11]}  Kg4 {[%clk 0:00:02]} 64. Bd2 {[%clk 0:00:10]}  Rg6 {[%clk 0:00:02]} 65. Bf4 {[%clk 0:00:09]}  Rg8 {[%clk 0:00:02]} 66. Be5 {[%clk 0:00:09]}  Rg6 {[%clk 0:00:01]} 67. Rc2 {[%clk 0:00:07]}  Bc6+ {[%clk 0:00:02]} 68. Kd4 {[%clk 0:00:07]}  Kf5 {[%clk 0:00:02]} 69. Rf2+ {[%clk 0:00:07]}  Ke6 {[%clk 0:00:02]} 70. Bh2 {[%clk 0:00:04]}  Rg4+ {[%clk 0:00:02]} 71. Kc5 {[%clk 0:00:05]}  Bb5 {[%clk 0:00:03]} 72. Rd2 {[%clk 0:00:03]}  Kf5 {[%clk 0:00:03]} 73. Bd6 {[%clk 0:00:03]}  Re4 {[%clk 0:00:03]} 74. Kb6 {[%clk 0:00:03]}  Rc4 {[%clk 0:00:03]} 75. Bc5 {[%clk 0:00:03]}  Ke4 {[%clk 0:00:03]} 76. b4 {[%clk 0:00:03]}  Rc3 {[%clk 0:00:03]} 77. Ra2 {[%clk 0:00:03]}  Rc4 {[%clk 0:00:03]} 78. Re2+ {[%clk 0:00:03]}  Kd3 {[%clk 0:00:03]} 79. Re7 {[%clk 0:00:03]}  Kc2 {[%clk 0:00:04]} 80. Re3 {[%clk 0:00:03]}  Kd2 {[%clk 0:00:04]} 81. Ra3 {[%clk 0:00:03]}  Kc2 {[%clk 0:00:04]} 82. Rxa6 {[%clk 0:00:04]}  Bxa6 {[%clk 0:00:04]} 83. Kxa6 {[%clk 0:00:05]}  Rxb4 {[%clk 0:00:04]} 84. Bxb4 {[%clk 0:00:05]} 1/2-1/2


[Site "https://www.chess.com"]

[Event "Titled Tuesday Blitz November 07 Late 2023"]
[White "Ruge, Edison"]
[Black "ExchangeAB"]
[WhiteFideId "4401000"]
[WhiteElo "2294"]
[BlackElo "2446"]
[Result "1-0"]
[Round "6"]
[TimeControl "180+1"]
[Date "2023.11.07"]
[WhiteClock "0:00:54"]
[BlackClock "0:00:06"]
[Board "104"]

1. e4 {[%clk 0:03:00]}  c6 {[%clk 0:03:00]} 2. d3 {[%clk 0:03:00]}  d5 {[%clk 0:03:00]} 3. Nd2 {[%clk 0:03:00]}  dxe4 {[%clk 0:03:01]} 4. dxe4 {[%clk 0:02:59]}  e5 {[%clk 0:03:01]} 5. Ngf3 {[%clk 0:03:00]}  Qc7 {[%clk 0:03:01]} 6. Bc4 {[%clk 0:03:00]}  h6 {[%clk 0:03:00]} 7. O-O {[%clk 0:02:55]}  Nf6 {[%clk 0:03:00]} 8. Nh4 {[%clk 0:02:55]}  g6 {[%clk 0:02:59]} 9. h3 {[%clk 0:02:47]}  Bg7 {[%clk 0:02:57]} 10. Qf3 {[%clk 0:02:48]}  a5 {[%clk 0:02:51]} 11. a4 {[%clk 0:02:46]}  Nbd7 {[%clk 0:02:47]} 12. Bxf7+ {[%clk 0:02:36]}  Kxf7 {[%clk 0:02:44]} 13. Qb3+ {[%clk 0:02:36]}  Ke8 {[%clk 0:02:37]} 14. Nxg6 {[%clk 0:02:29]}  Nc5 {[%clk 0:02:14]} 15. Qc4 {[%clk 0:02:29]}  b6 {[%clk 0:02:08]} 16. Nxh8 {[%clk 0:02:26]}  Be6 {[%clk 0:02:04]} 17. Qe2 {[%clk 0:02:20]}  Bxh8 {[%clk 0:02:03]} 18. Nc4 {[%clk 0:02:12]}  Rd8 {[%clk 0:01:50]} 19. Bxh6 {[%clk 0:02:10]}  Rd4 {[%clk 0:01:43]} 20. Nd2 {[%clk 0:02:02]}  Ncxe4 {[%clk 0:01:40]} 21. Nxe4 {[%clk 0:02:01]}  Rxe4 {[%clk 0:01:40]} 22. Qa6 {[%clk 0:01:56]}  Kf7 {[%clk 0:01:33]} 23. Rfe1 {[%clk 0:01:54]}  Rxe1+ {[%clk 0:01:31]} 24. Rxe1 {[%clk 0:01:53]}  Bg7 {[%clk 0:01:32]} 25. Be3 {[%clk 0:01:47]}  Nd5 {[%clk 0:01:31]} 26. Bd2 {[%clk 0:01:42]}  Nb4 {[%clk 0:01:18]} 27. Qe2 {[%clk 0:01:37]}  Kg8 {[%clk 0:01:04]} 28. c3 {[%clk 0:01:36]}  Nd5 {[%clk 0:01:03]} 29. c4 {[%clk 0:01:27]}  Nb4 {[%clk 0:01:01]} 30. Bxb4 {[%clk 0:01:27]}  axb4 {[%clk 0:01:02]} 31. b3 {[%clk 0:01:26]}  c5 {[%clk 0:00:56]} 32. Qe4 {[%clk 0:01:23]}  Bc8 {[%clk 0:00:56]} 33. Qd5+ {[%clk 0:01:21]}  Qf7 {[%clk 0:00:50]} 34. Qd8+ {[%clk 0:01:19]}  Qf8 {[%clk 0:00:50]} 35. Qxb6 {[%clk 0:01:17]}  Kh7 {[%clk 0:00:41]} 36. Re4 {[%clk 0:01:13]}  Bf6 {[%clk 0:00:36]} 37. a5 {[%clk 0:01:11]}  Bf5 {[%clk 0:00:36]} 38. Qb7+ {[%clk 0:01:07]}  Kg6 {[%clk 0:00:34]} 39. Re3 {[%clk 0:01:07]}  Qd6 {[%clk 0:00:24]} 40. Rg3+ {[%clk 0:01:06]}  Kh6 {[%clk 0:00:24]} 41. Qd5 {[%clk 0:01:04]}  Qxd5 {[%clk 0:00:20]} 42. cxd5 {[%clk 0:01:03]}  Bc8 {[%clk 0:00:16]} 43. d6 {[%clk 0:01:00]}  Ba6 {[%clk 0:00:13]} 44. Rg8 {[%clk 0:00:57]}  c4 {[%clk 0:00:12]} 45. bxc4 {[%clk 0:00:56]}  b3 {[%clk 0:00:12]} 46. Rb8 {[%clk 0:00:56]}  Bxc4 {[%clk 0:00:11]} 47. d7 {[%clk 0:00:55]}  b2 {[%clk 0:00:09]} 48. Rxb2 {[%clk 0:00:54]}  Be6 {[%clk 0:00:06]} 49. Rb6 {[%clk 0:00:54]} 1-0


[Site "https://www.chess.com"]

[Event "Titled Tuesday Blitz November 07 Late 2023"]
[White "Halak, Miklos"]
[Black "Nita, Lucian"]
[WhiteFideId "726400"]
[BlackFideId "1206923"]
[WhiteElo "2438"]
[BlackElo "2312"]
[Result "1-0"]
[Round "6"]
[TimeControl "180+1"]
[Date "2023.11.07"]
[WhiteClock "0:00:21"]
[BlackClock "0:00:19"]
[Board "114"]

1. e4 {[%clk 0:03:00]}  d6 {[%clk 0:03:00]} 2. d4 {[%clk 0:03:00]}  Nf6 {[%clk 0:03:01]} 3. Nc3 {[%clk 0:03:00]}  e5 {[%clk 0:02:56]} 4. Nf3 {[%clk 0:02:59]}  Nbd7 {[%clk 0:02:55]} 5. g3 {[%clk 0:02:55]}  Be7 {[%clk 0:02:54]} 6. Bg2 {[%clk 0:02:56]}  O-O {[%clk 0:02:55]} 7. O-O {[%clk 0:02:56]}  c6 {[%clk 0:02:55]} 8. a4 {[%clk 0:02:50]}  Qc7 {[%clk 0:02:55]} 9. a5 {[%clk 0:02:50]}  Re8 {[%clk 0:02:55]} 10. Re1 {[%clk 0:02:49]}  Nf8 {[%clk 0:02:54]} 11. d5 {[%clk 0:02:46]}  cxd5 {[%clk 0:02:51]} 12. exd5 {[%clk 0:02:38]}  Bd7 {[%clk 0:02:50]} 13. Ng5 {[%clk 0:02:34]}  Rac8 {[%clk 0:02:48]} 14. Ra3 {[%clk 0:02:32]}  h6 {[%clk 0:02:45]} 15. Nge4 {[%clk 0:02:31]}  Nxe4 {[%clk 0:02:44]} 16. Bxe4 {[%clk 0:02:30]}  f5 {[%clk 0:02:44]} 17. Bg2 {[%clk 0:02:27]}  Nh7 {[%clk 0:02:43]} 18. Be3 {[%clk 0:02:16]}  b5 {[%clk 0:02:36]} 19. axb6 {[%clk 0:02:14]}  axb6 {[%clk 0:02:36]} 20. Qa1 {[%clk 0:02:12]}  b5 {[%clk 0:02:13]} 21. Ra7 {[%clk 0:02:09]}  Qd8 {[%clk 0:02:13]} 22. Qa6 {[%clk 0:02:04]}  Rb8 {[%clk 0:02:07]} 23. Ra1 {[%clk 0:01:43]}  b4 {[%clk 0:01:59]} 24. Na4 {[%clk 0:01:38]}  Bb5 {[%clk 0:01:58]} 25. Qa5 {[%clk 0:01:29]}  Qxa5 {[%clk 0:01:52]} 26. Rxa5 {[%clk 0:01:29]}  Nf6 {[%clk 0:01:39]} 27. Nb6 {[%clk 0:01:24]}  e4 {[%clk 0:01:37]} 28. Rxb5 {[%clk 0:01:23]}  Bd8 {[%clk 0:01:36]} 29. Bf1 {[%clk 0:01:17]}  Re7 {[%clk 0:01:18]} 30. Na4 {[%clk 0:01:13]}  Rc8 {[%clk 0:01:16]} 31. c4 {[%clk 0:01:10]}  bxc3 {[%clk 0:01:15]} 32. Nxc3 {[%clk 0:01:10]}  g5 {[%clk 0:01:14]} 33. Bd4 {[%clk 0:01:09]}  Ng4 {[%clk 0:01:11]} 34. h3 {[%clk 0:01:08]}  Ne5 {[%clk 0:01:11]} 35. Bxe5 {[%clk 0:01:06]}  Rxe5 {[%clk 0:01:11]} 36. Ra7 {[%clk 0:01:03]}  f4 {[%clk 0:01:08]} 37. Rbb7 {[%clk 0:01:00]}  Bf6 {[%clk 0:01:05]} 38. Rf7 {[%clk 0:00:56]}  Rf8 {[%clk 0:01:00]} 39. Rxf8+ {[%clk 0:00:54]}  Kxf8 {[%clk 0:01:00]} 40. gxf4 {[%clk 0:00:54]}  gxf4 {[%clk 0:01:00]} 41. Rd7 {[%clk 0:00:51]}  Rg5+ {[%clk 0:00:53]} 42. Kh1 {[%clk 0:00:50]}  Bxc3 {[%clk 0:00:49]} 43. bxc3 {[%clk 0:00:50]}  Rxd5 {[%clk 0:00:49]} 44. Bc4 {[%clk 0:00:38]}  Rd1+ {[%clk 0:00:39]} 45. Kg2 {[%clk 0:00:36]}  Ke8 {[%clk 0:00:38]} 46. Rh7 {[%clk 0:00:33]}  Rc1 {[%clk 0:00:27]} 47. Bb5+ {[%clk 0:00:28]}  Kf8 {[%clk 0:00:26]} 48. Rxh6 {[%clk 0:00:28]}  Rxc3 {[%clk 0:00:25]} 49. Rxd6 {[%clk 0:00:27]}  e3 {[%clk 0:00:24]} 50. fxe3 {[%clk 0:00:24]}  Rxe3 {[%clk 0:00:24]} 51. Rf6+ {[%clk 0:00:23]}  Kg7 {[%clk 0:00:22]} 52. Rxf4 {[%clk 0:00:23]}  Rb3 {[%clk 0:00:22]} 53. Be2 {[%clk 0:00:22]}  Kh6 {[%clk 0:00:22]} 54. Bf3 {[%clk 0:00:22]}  Kg5 {[%clk 0:00:22]} 55. Kg3 {[%clk 0:00:21]}  Rb1 {[%clk 0:00:21]} 56. h4+ {[%clk 0:00:22]}  Kg6 {[%clk 0:00:20]} 57. Be4+ {[%clk 0:00:22]}  Kh6 {[%clk 0:00:19]} 58. Bxb1 {[%clk 0:00:21]} 1-0


[Site "https://www.chess.com"]

[Event "Titled Tuesday Blitz November 07 Late 2023"]
[White "Martins, Vinicius Tine"]
[Black "Quirke, Jeffrey"]
[WhiteFideId "2112884"]
[BlackFideId "2013029"]
[WhiteElo "2397"]
[BlackElo "2249"]
[Result "0-1"]
[Round "6"]
[TimeControl "180+1"]
[Date "2023.11.07"]
[WhiteClock "0:00:06"]
[BlackClock "0:01:14"]
[Board "115"]

1. d4 {[%clk 0:02:55]}  Nf6 {[%clk 0:02:52]} 2. Bf4 {[%clk 0:02:54]}  g6 {[%clk 0:02:51]} 3. Nf3 {[%clk 0:02:51]}  Bg7 {[%clk 0:02:48]} 4. c4 {[%clk 0:02:49]}  O-O {[%clk 0:02:47]} 5. Nc3 {[%clk 0:02:48]}  d5 {[%clk 0:02:45]} 6. e3 {[%clk 0:02:46]}  c5 {[%clk 0:02:44]} 7. Rc1 {[%clk 0:02:15]}  Nc6 {[%clk 0:02:29]} 8. cxd5 {[%clk 0:02:11]}  cxd4 {[%clk 0:02:21]} 9. dxc6 {[%clk 0:02:02]}  dxc3 {[%clk 0:02:21]} 10. Qxd8 {[%clk 0:01:59]}  Rxd8 {[%clk 0:02:19]} 11. c7 {[%clk 0:01:59]}  Rf8 {[%clk 0:02:08]} 12. Rxc3 {[%clk 0:01:34]}  Nd5 {[%clk 0:02:08]} 13. Rb3 {[%clk 0:01:26]}  Nxf4 {[%clk 0:01:55]} 14. exf4 {[%clk 0:01:25]}  b6 {[%clk 0:01:56]} 15. Bb5 {[%clk 0:00:48]}  Be6 {[%clk 0:01:39]} 16. Re3 {[%clk 0:00:42]}  Rac8 {[%clk 0:01:31]} 17. b3 {[%clk 0:00:23]}  Rxc7 {[%clk 0:01:30]} 18. O-O {[%clk 0:00:23]}  Bd5 {[%clk 0:01:27]} 19. Ne5 {[%clk 0:00:20]}  e6 {[%clk 0:01:24]} 20. Bc4 {[%clk 0:00:19]}  Bxe5 {[%clk 0:01:21]} 21. Bxd5 {[%clk 0:00:17]}  Bxf4 {[%clk 0:01:17]} 22. Rd3 {[%clk 0:00:06]}  exd5 {[%clk 0:01:14]} 0-1


[Site "https://www.chess.com"]

[Event "Titled Tuesday Blitz November 07 Late 2023"]
[White "Gerbelli Neto, Eduardo"]
[Black "Bullen, Alex"]
[WhiteFideId "2103281"]
[BlackFideId "1801627"]
[WhiteElo "2386"]
[BlackElo "2229"]
[Result "1-0"]
[Round "6"]
[TimeControl "180+1"]
[Date "2023.11.07"]
[WhiteClock "0:01:37"]
[BlackClock "0:00:44"]
[Board "116"]

1. e4 {[%clk 0:03:00]}  e6 {[%clk 0:02:58]} 2. d4 {[%clk 0:03:00]}  d5 {[%clk 0:02:58]} 3. Nc3 {[%clk 0:03:00]}  Nf6 {[%clk 0:02:55]} 4. e5 {[%clk 0:02:59]}  Nfd7 {[%clk 0:02:54]} 5. Nf3 {[%clk 0:03:00]}  c5 {[%clk 0:02:54]} 6. dxc5 {[%clk 0:03:01]}  Nc6 {[%clk 0:02:50]} 7. Bf4 {[%clk 0:02:59]}  Bxc5 {[%clk 0:02:49]} 8. Bd3 {[%clk 0:02:55]}  Nb4 {[%clk 0:02:38]} 9. O-O {[%clk 0:02:49]}  Nxd3 {[%clk 0:02:38]} 10. cxd3 {[%clk 0:02:50]}  O-O {[%clk 0:02:37]} 11. d4 {[%clk 0:02:47]}  Be7 {[%clk 0:02:34]} 12. Qd2 {[%clk 0:02:45]}  b6 {[%clk 0:02:32]} 13. Nb5 {[%clk 0:02:38]}  Ba6 {[%clk 0:02:30]} 14. a4 {[%clk 0:02:38]}  Bxb5 {[%clk 0:02:01]} 15. axb5 {[%clk 0:02:37]}  Qb8 {[%clk 0:01:59]} 16. Rfc1 {[%clk 0:02:30]}  Rc8 {[%clk 0:01:57]} 17. Rxc8+ {[%clk 0:02:20]}  Qxc8 {[%clk 0:01:57]} 18. Rc1 {[%clk 0:02:21]}  Qb7 {[%clk 0:01:56]} 19. Qc2 {[%clk 0:02:20]}  h6 {[%clk 0:01:50]} 20. Qc7 {[%clk 0:02:18]}  Rb8 {[%clk 0:01:42]} 21. g4 {[%clk 0:01:53]}  g5 {[%clk 0:01:39]} 22. Bd2 {[%clk 0:01:49]}  Kf8 {[%clk 0:01:32]} 23. h4 {[%clk 0:01:48]}  gxh4 {[%clk 0:01:10]} 24. Bxh6+ {[%clk 0:01:48]}  Ke8 {[%clk 0:01:10]} 25. Qxb7 {[%clk 0:01:47]}  Rxb7 {[%clk 0:01:08]} 26. Rc8+ {[%clk 0:01:47]}  Bd8 {[%clk 0:01:06]} 27. Bg5 {[%clk 0:01:48]}  f6 {[%clk 0:01:05]} 28. exf6 {[%clk 0:01:42]}  Rc7 {[%clk 0:00:51]} 29. f7+ {[%clk 0:01:41]}  Kxf7 {[%clk 0:00:49]} 30. Rxd8 {[%clk 0:01:41]}  h3 {[%clk 0:00:46]} 31. Rxd7+ {[%clk 0:01:37]}  Rxd7 {[%clk 0:00:44]} 32. Ne5+ {[%clk 0:01:37]} 1-0


[Site "https://www.chess.com"]